fUST/lending_fUST_20240717
["ID","MTS","AMOUNT","RATE_DAILY","PERIOD"]
[332476382,1721226340800,3776.426534,0.00015,2]
[332476383,1721226347548,154.83742071,0.00015,2]
[332476384,1721226352517,154.79103211,0.00014999,2]
[332476387,1721226360988,529.56993833,0.00014999,2]
[332476388,1721226364265,9765.975951,0.00014998,2]
[332476390,1721226374259,156.63186637,0.00014999,2]
[332476392,1721226387168,778.16718245,0.00014999,2]
[332476393,1721226390014,719.11,0.00010959,2]
[332476400,1721226411347,599.26,0.00010959,2]
[332476403,1721226421863,499.38,0.00010959,2]
[332476405,1721226432398,762.95,0.00010959,2]
[332476409,1721226455385,730.52,0.00010959,2]
[332476410,1721226456938,656.24869051,0.00014999,2]
[332476411,1721226457533,159.59139767,0.00013283,2]
[332476412,1721226458326,165.25732412,0.00013283,2]
[332476413,1721226461674,178.99164033,0.00013283,2]
[332476414,1721226463975,1877.95268089,0.00013283,2]
[332476415,1721226465522,2135.60833403,0.00013283,2]
[332476417,1721226468527,155.62808659,0.00014999,2]
[332476418,1721226469892,162.82680235,0.00013283,2]
[332476419,1721226471002,227.68775465,0.00015,2]
[332476420,1721226476368,167.24,0.00010959,2]
[332476421,1721226477496,524.30218587,0.00013283,2]
[332476426,1721226480016,354.46681452,0.00013283,2]
[332476427,1721226484709,182.82989065,0.00014999,2]
[332476428,1721226486898,836.24,0.00010959,2]
[332476429,1721226490466,675.94103918,0.00013283,2]
[332476430,1721226494028,886.44482597,0.00013283,2]
[332476431,1721226496972,157.15944748,0.00014999,2]
[332476432,1721226497005,420.01137185,0.00014999,2]
[332476435,1721226502004,10168.44275403,0.00014998,2]
[332476436,1721226503253,2969.39999998,0.00014999,2]
[332476437,1721226507064,319.07596351,0.00013283,2]
[332476438,1721226511548,150.5,0.0001999,7]
[332476439,1721226512040,150.5,0.0001998,7]
[332476440,1721226512639,150.5,0.0001997,7]
[332476441,1721226514552,189.08196029,0.00014999,2]
[332476444,1721226517484,1636.98995052,0.00014999,2]
[332476445,1721226518407,195.44097058,0.000139,2]
[332476446,1721226538224,156.4139179,0.00014999,2]
[332476447,1721226539314,413.22690792,0.00014999,2]
[332476448,1721226544858,271.9244408,0.00014999,2]
[332476449,1721226548753,202.13946757,0.00014999,2]
[332476450,1721226550133,392.04070002,0.00014999,2]
[332476451,1721226554492,420.01137185,0.00014999,2]
[332476452,1721226555790,154.79103211,0.00014999,2]
[332476453,1721226568217,156.4139179,0.00014999,2]
[332476454,1721226569134,139.33829516,0.00010959,2]
[332476455,1721226569160,344.08170484,0.00010959,2]
[332476456,1721226576878,803.36733613,0.00014999,2]
[332476457,1721226582439,250.0,0.00015212,2]
[332476458,1721226585595,-300.0,0.00016099,2]
[332476459,1721226585624,-158.35036999,0.000161,2]
[332476460,1721226585652,-44.89719325,0.000161,2]
[332476461,1721226585688,-160.85968219,0.000161,2]
[332476462,1721226585803,-503.24756324,0.000161,2]
[332476465,1721226605263,9629.18802957,0.00014998,2]
[332476468,1721226610710,-300.0,0.00016099,2]
[332476469,1721226610741,-226.59465942,0.000161,2]
[332476470,1721226610775,-466.77839508,0.000161,2]
[332476514,1721226634187,-855.34050367,0.000161,2]
[332476523,1721226634264,-1797.29861393,0.000161,2]
[332476525,1721226634274,-1694.71349573,0.00016245,2]
[332476527,1721226634286,-1492.02183617,0.00016245,2]
[332476529,1721226634298,-3171.9681964,0.00016245,2]
[332476531,1721226634310,-11350.8129667,0.00016245,2]
[332476533,1721226634319,-195.01048906,0.00016254,2]
[332476535,1721226634330,-644.64745957,0.00016254,2]
[332476537,1721226634340,-8269.83952216,0.00016255,2]
[332476557,1721226639421,-13116.38482712,0.00016255,2]
[332476558,1721226639433,-21275.29548149,0.00016255,2]
[332476559,1721226639443,-42297.33181855,0.00016255,2]
[332476560,1721226639455,-34983.05229305,0.00016255,2]
[332476561,1721226639465,-1063.12812108,0.00016255,2]
[332476562,1721226639476,-2135.60833403,0.00016255,2]
[332476563,1721226639489,-277.01550922,0.00016803,2]
[332476564,1721226639501,-10595.39117734,0.00016848,2]
[332476566,1721226639514,-193.63393085,0.00016848,2]
[332476568,1721226639526,-156.02867704,0.00016848,2]
[332476569,1721226639541,-249.53557838,0.00016848,2]
[332476570,1721226639553,-159.65124257,0.00016848,2]
[332476571,1721226639564,-525.73842429,0.00016848,2]
[332476572,1721226639575,-420.0,0.00017709,2]
[332476573,1721226639586,-191.39935973,0.0001818,2]
[332476574,1721226639599,-386.50522051,0.0001818,2]
[332476575,1721226639610,-251.03231438,0.00018698,2]
[332476576,1721226639622,-8854.75824751,0.00018788,2]
[332476577,1721226639636,-30000.0,0.00018898,2]
[332476578,1721226639648,-2548.85392896,0.000189,2]
[332476579,1721226639661,-312.07224722,0.00019,2]
[332476580,1721226639675,-2496.10200774,0.00019,2]
[332476581,1721226639687,-164.546732,0.00019178,2]
[332476582,1721226639699,-501.5294303,0.00019178,2]
[332476583,1721226639712,-251.03231436,0.00019475,2]
[332476584,1721226639726,-587.0,0.0001948,2]
[332476585,1721226639740,-987.41667127,0.00019515,2]
[332476587,1721226639752,-1490.82891825,0.00019515,2]
[332476589,1721226639765,-758.13758367,0.00019515,2]
[332476591,1721226639776,-156.17659771,0.00019515,2]
[332476593,1721226639788,-532.75729962,0.00019515,2]
[332476595,1721226639798,-220.75135017,0.00019515,2]
[332476596,1721226639810,-2414.76449425,0.00019515,2]
[332476597,1721226639822,-982.12918538,0.00019515,2]
[332476598,1721226639833,-154.79103211,0.00019515,2]
[332476599,1721226639845,-180.90578811,0.00019515,2]
[332476600,1721226639860,-180.55121184,0.00019515,2]
[332476602,1721226639872,-950.44599873,0.00019515,2]
[332476604,1721226639883,-301.37525549,0.00019515,2]
[332476605,1721226639899,-209.96027544,0.00019515,2]
[332476607,1721226639910,-645.00073361,0.00019515,2]
[332476609,1721226639923,-17278.76823358,0.00019515,2]
[332476611,1721226639932,-188.46779172,0.00019515,2]
[332476613,1721226639944,-726.14786698,0.00019515,2]
[332476615,1721226639955,-909.7461121,0.00019515,2]
[332476616,1721226639967,-154.93979392,0.00019515,2]
[332476617,1721226639978,-154.96102002,0.00019515,2]
[332476618,1721226639991,-845.11491107,0.00019515,2]
[332476620,1721226640002,-891.12787542,0.00019515,2]
[332476622,1721226640014,-375.33441118,0.00019515,2]
[332476624,1721226640027,-160.18263848,0.00019515,2]
[332476626,1721226640040,-155.01414982,0.00019515,2]
[332476627,1721226640053,-220.15383253,0.00019515,2]
[332476628,1721226640064,-196.12614275,0.00019515,2]
[332476630,1721226640075,-11056.31209465,0.00019515,2]
[332476631,1721226640086,-203.54093102,0.00019515,2]
[332476632,1721226640096,-183.71919178,0.00019515,2]
[332476633,1721226640106,-319.02412472,0.00019515,2]
[332476634,1721226640117,-188.87827514,0.00019515,2]
[332476635,1721226640131,-240.84737953,0.00019515,2]
[332476636,1721226640146,-8854.75824751,0.0001999,2]
[332476637,1721226640158,-500.0,0.00019999,2]
[332476638,1721226640172,-195.9277349,0.00019999,2]
[332476639,1721226640186,-172.68065646,0.00019999,2]
[332476640,1721226640200,-500.0,0.00019999,2]
[332476641,1721226640213,-579.06757953,0.00019999,2]
[332476642,1721226640223,-201.83805034,0.00019999,2]
[332476643,1721226640234,-500.0,0.00019999,2]
[332476644,1721226640247,-193.17326787,0.00019999,2]
[332476645,1721226640259,-500.0,0.00019999,2]
[332476646,1721226640271,-500.0,0.00019999,2]
[332476647,1721226640283,-500.0,0.00019999,2]
[332476648,1721226640295,-475.68290566,0.00019999,2]
[332476649,1721226640307,-500.0,0.00019999,2]
[332476650,1721226640319,-500.0,0.00019999,2]
[332476651,1721226640330,-500.0,0.00019999,2]
[332476652,1721226640342,-500.0,0.00019999,2]
[332476653,1721226640353,-500.0,0.00019999,2]
[332476654,1721226640364,-353.99596154,0.00019999,2]
[332476655,1721226640374,-500.0,0.00019999,2]
[332476656,1721226640385,-479.56824454,0.00019999,2]
[332476657,1721226640398,-500.0,0.00019999,2]
[332476658,1721226640409,-500.0,0.00019999,2]
[332476659,1721226640421,-500.0,0.00019999,2]
[332476660,1721226640431,-500.0,0.00019999,2]
[332476661,1721226640442,-764.99692513,0.0002,2]
[332476662,1721226640452,-226.06683349,0.0002,2]
[332476663,1721226640463,-228.33337167,0.0002,2]
[332476664,1721226640474,-28037.28680741,0.0002,2]
[332476665,1721226640519,1636.48372042,0.00014999,2]
[332476666,1721226640590,-404.04953729,0.00016255,2]
[332476667,1721226640600,-1989.67183354,0.00019515,2]
[332476668,1721226640611,-182.59909899,0.00019515,2]
[332476669,1721226640622,-20724.48820225,0.0002,2]
[332476670,1721226640632,-7180.66385085,0.0002,2]
[332476671,1721226640645,-245.87964659,0.0002,2]
[332476672,1721226640655,-154.88949836,0.0002,2]
[332476673,1721226640666,-309.45844772,0.0002,2]
[332476674,1721226640677,-150.112233,0.0002,3]
[332476675,1721226640689,-251.03231436,0.00020253,2]
[332476676,1721226640702,-395.23905296,0.000203,2]
[332476677,1721226640715,-3283.2649626,0.00020509,2]
[332476678,1721226640729,-244.335768,0.00020509,2]
[332476679,1721226640742,-355.49665182,0.0002066,7]
[332476680,1721226640753,-164.282449,0.00020663,2]
[332476681,1721226640766,-8854.75824751,0.00020804,2]
[332476682,1721226640778,-8854.75824751,0.0002098,3]
[332476683,1721226640789,-62589.36549628,0.0002099,2]
[332476684,1721226640801,-9559.1470371,0.00020999,5]
[332476685,1721226640813,-80607.85485452,0.00021,5]
[332476686,1721226640824,-200.07730814,0.00021,2]
[332476687,1721226640835,-6992.96242863,0.00021,2]
[332476688,1721226640848,-396.60210355,0.00021,2]
[332476689,1721226640859,-257.83877754,0.00021,2]
[332476690,1721226640869,-5805.1798355,0.00021,2]
[332476691,1721226640880,-86996.46240442,0.00021,2]
[332476692,1721226640893,-151.0,0.00021,2]
[332476693,1721226640904,-151.0,0.00021,2]
[332476694,1721226640915,-150.112233,0.00021,2]
[332476695,1721226640928,-151.0,0.00021,2]
[332476696,1721226640938,-248.416838,0.00021,2]
[332476697,1721226640949,-151.0,0.00021,2]
[332476698,1721226640960,-151.0,0.00021,2]
[332476699,1721226640970,-151.0,0.00021,2]
[332476700,1721226640981,-151.0,0.00021,2]
[332476701,1721226640992,-151.0,0.00021,2]
[332476702,1721226641002,-151.0,0.00021,2]
[332476703,1721226641013,-151.0,0.00021,2]
[332476704,1721226641024,-151.0,0.00021,2]
[332476705,1721226641035,-1672.071649,0.00021,2]
[332476706,1721226641046,-251.03231436,0.0002103,2]
[332476707,1721226641057,-206.4665977,0.00021041,2]
[332476708,1721226641068,-206.4665977,0.00021041,2]
[332476709,1721226641078,-206.4665977,0.00021041,2]
[332476710,1721226641089,-206.4665977,0.00021041,2]
[332476711,1721226641100,-206.4665977,0.00021041,2]
[332476712,1721226641111,-206.4665977,0.00021041,2]
[332476713,1721226641124,-206.4665977,0.00021041,2]
[332476714,1721226641137,-206.4665977,0.00021041,2]
[332476715,1721226641148,-206.4665977,0.00021041,2]
[332476716,1721226641159,-8854.75824751,0.0002109,3]
[332476717,1721226641170,-579.127659,0.00021096,2]
[332476718,1721226641181,-344.96997794,0.00021099,2]
[332476719,1721226641192,-5159.77007997,0.00021099,2]
[332476720,1721226641206,-877.02144721,0.00021099,2]
[332476721,1721226641217,-12215.64277046,0.000211,2]
[332476722,1721226641228,-260.9,0.00021108,2]
[332476723,1721226641239,-1000.0,0.00021169,2]
[332476724,1721226641250,-164.282449,0.00021201,2]
[332476725,1721226641260,-1000.0,0.00021202,2]
[332476726,1721226641271,-500.0,0.00021232,2]
[332476727,1721226641282,-260.9,0.00021331,2]
[332476728,1721226641293,-300.44952216,0.00021407,2]
[332476729,1721226641304,-260.9,0.00021554,2]
[332476730,1721226641314,-1000.0,0.00021655,2]
[332476731,1721226641326,-150.112233,0.000217,4]
[332476732,1721226641337,-1000.0,0.00021705,2]
[332476733,1721226641348,-1945.47989268,0.00021717,2]
[332476734,1721226641358,-1000.0,0.00021727,2]
[332476735,1721226641368,-164.282449,0.0002174,2]
[332476736,1721226641379,-260.9,0.00021777,2]
[332476737,1721226641394,-150.112233,0.000218,3]
[332476738,1721226641405,-3000.0,0.000218,2]
[332476739,1721226641416,-1000.0,0.00021806,2]
[332476740,1721226641427,-8854.75824751,0.00021807,3]
[332476741,1721226641437,-251.03231436,0.00021807,2]
[332476742,1721226641448,-5299.099794,0.0002181,2]
[332476743,1721226641459,-30000.00000001,0.00021817,3]
[332476744,1721226641469,-2000.0,0.00021817,2]
[332476745,1721226641480,-1000.0,0.00021838,2]
[332476746,1721226641491,-146785.97514164,0.0002185,2]
[332476747,1721226641501,-151.0,0.0002185,2]
[332476748,1721226641511,-151.0,0.0002185,2]
[332476749,1721226641521,-151.0,0.0002185,2]
[332476750,1721226641533,-151.0,0.0002185,2]
[332476751,1721226641544,-151.0,0.0002185,2]
[332476752,1721226641555,-151.0,0.0002185,2]
[332476753,1721226641565,-151.0,0.0002185,2]
[332476754,1721226641576,-151.0,0.0002185,2]
[332476755,1721226641587,-1672.071649,0.0002185,2]
[332476756,1721226641598,-453.18166059,0.00021863,2]
[332476757,1721226641608,-206.4665977,0.00021863,2]
[332476758,1721226641619,-206.4665977,0.00021863,2]
[332476759,1721226641838,-206.4665977,0.00021863,2]
[332476760,1721226641849,-206.4665977,0.00021863,2]
[332476761,1721226641858,-206.4665977,0.00021863,2]
[332476762,1721226641868,-412.9331954,0.00021863,2]
[332476763,1721226641877,-206.4665977,0.00021863,2]
[332476764,1721226641889,-206.4665977,0.00021863,2]
[332476765,1721226641899,-206.4665977,0.00021863,2]
[332476766,1721226641908,-206.4665977,0.00021863,2]
[332476767,1721226641918,-206.4665977,0.00021863,2]
[332476768,1721226641927,-203.3276336,0.00021863,2]
[332476769,1721226641938,-1000.0,0.00021879,2]
[332476770,1721226641948,-150.112233,0.000219,4]
[332476771,1721226641958,-150.112233,0.000219,5]
[332476772,1721226641968,-150.112233,0.000219,2]
[332476773,1721226641979,-17709.516495,0.00021907,3]
[332476774,1721226641990,-53128.5494851,0.00021907,3]
[332476775,1721226642000,-151.0,0.00021907,2]
[332476776,1721226642012,-151.0,0.00021907,2]
[332476777,1721226642022,-151.0,0.00021907,2]
[332476778,1721226642032,-151.0,0.00021907,2]
[332476779,1721226642042,-151.0,0.00021907,2]
[332476780,1721226642054,-151.0,0.00021907,2]
[332476781,1721226642064,-151.0,0.00021907,2]
[332476782,1721226642074,-151.0,0.00021907,2]
[332476783,1721226642084,-1067.07630449,0.00021917,2]
[332476784,1721226642094,-500.0,0.00021917,2]
[332476785,1721226642105,-500.0,0.00021917,2]
[332476786,1721226642118,-500.0,0.00021917,2]
[332476787,1721226642132,-500.0,0.00021917,2]
[332476788,1721226642145,-500.0,0.00021917,2]
[332476789,1721226642156,-500.0,0.00021917,2]
[332476790,1721226642166,-500.0,0.00021917,2]
[332476791,1721226642177,-500.0,0.00021917,2]
[332476792,1721226642186,-500.0,0.00021917,2]
[332476793,1721226642198,-500.0,0.00021917,2]
[332476794,1721226642210,-500.0,0.00021917,2]
[332476795,1721226642221,-500.0,0.00021917,2]
[332476796,1721226642230,-500.0,0.00021917,2]
[332476797,1721226642241,-500.0,0.00021917,2]
[332476798,1721226642250,-500.0,0.00021917,2]
[332476799,1721226642260,-500.0,0.00021917,2]
[332476800,1721226642269,-500.0,0.00021917,2]
[332476801,1721226642279,-500.0,0.00021917,2]
[332476802,1721226642289,-500.0,0.00021917,2]
[332476803,1721226642298,-500.0,0.00021917,2]
[332476804,1721226642308,-500.0,0.00021917,2]
[332476805,1721226642318,-500.0,0.00021917,2]
[332476806,1721226642327,-500.0,0.00021917,2]
[332476807,1721226642336,-500.0,0.00021917,2]
[332476808,1721226642346,-500.0,0.00021917,2]
[332476810,1721226642356,-500.0,0.00021917,2]
[332476812,1721226642366,-500.0,0.00021917,2]
[332476814,1721226642375,-500.0,0.00021917,2]
[332476815,1721226642387,-500.0,0.00021917,2]
[332476816,1721226642396,-500.0,0.00021917,2]
[332476818,1721226642407,-500.0,0.00021917,2]
[332476820,1721226642417,-2948.23,0.00021917,2]
[332476822,1721226642426,-500.0,0.00021917,2]
[332476824,1721226642435,-500.0,0.00021917,2]
[332476826,1721226642445,-500.0,0.00021917,2]
[332476828,1721226642454,-500.0,0.00021917,2]
[332476830,1721226642464,-204.42906775,0.00021917,2]
[332476831,1721226642473,-500.0,0.00021917,2]
[332476832,1721226642483,-500.0,0.00021917,2]
[332476833,1721226642492,-500.0,0.00021917,2]
[332476834,1721226642502,-500.0,0.00021917,2]
[332476835,1721226642511,-500.0,0.00021917,2]
[332476836,1721226642521,-500.0,0.00021917,2]
[332476837,1721226642530,-500.0,0.00021917,2]
[332476838,1721226642539,-500.0,0.00021917,2]
[332476839,1721226642548,-500.0,0.00021917,2]
[332476840,1721226642557,-500.0,0.00021917,2]
[332476841,1721226642566,-500.0,0.00021917,2]
[332476842,1721226642575,-500.0,0.00021917,2]
[332476843,1721226642584,-500.0,0.00021917,2]
[332476845,1721226642593,-500.0,0.00021917,2]
[332476848,1721226642603,-500.0,0.00021917,2]
[332476850,1721226642612,-500.0,0.00021917,2]
[332476852,1721226642621,-500.0,0.00021917,2]
[332476854,1721226642630,-500.0,0.00021917,2]
[332476856,1721226642644,-500.0,0.00021917,2]
[332476858,1721226642653,-500.0,0.00021917,2]
[332476860,1721226642662,-232.95849691,0.00021917,2]
[332476862,1721226642671,-500.0,0.00021917,2]
[332476864,1721226642680,-500.91945503,0.00021917,2]
[332476865,1721226642689,-500.0,0.00021917,2]
[332476866,1721226642698,-500.0,0.00021917,2]
[332476868,1721226642707,-500.0,0.00021917,2]
[332476870,1721226642717,-500.0,0.00021917,2]
[332476871,1721226642726,-595.94,0.00021917,2]
[332476873,1721226642735,-500.0,0.00021917,2]
[332476875,1721226642744,-500.18958261,0.00021917,2]
[332476876,1721226642755,-500.0,0.00021917,2]
[332476878,1721226642764,-500.0,0.00021917,2]
[332476880,1721226642773,-500.0,0.00021917,2]
[332476882,1721226642783,-500.0,0.00021917,2]
[332476883,1721226642791,-500.0,0.00021917,2]
[332476884,1721226642800,-500.0,0.00021917,2]
[332476885,1721226642810,-500.0,0.00021917,2]
[332476886,1721226642819,-500.0,0.00021917,2]
[332476887,1721226642828,-500.0,0.00021917,2]
[332476888,1721226642837,-500.0,0.00021917,2]
[332476889,1721226642846,-500.0,0.00021917,2]
[332476890,1721226642855,-500.0,0.00021917,2]
[332476891,1721226642865,-500.0,0.00021917,2]
[332476893,1721226642874,-549.44,0.00021917,2]
[332476894,1721226642883,-549.44,0.00021917,2]
[332476896,1721226642895,-500.0,0.00021917,2]
[332476897,1721226642904,-549.44,0.00021917,2]
[332476898,1721226642914,-500.0,0.00021917,2]
[332476899,1721226642923,-500.0,0.00021917,2]
[332476900,1721226642933,-500.0,0.00021917,2]
[332476901,1721226642942,-500.0,0.00021917,2]
[332476902,1721226642951,-500.0,0.00021917,2]
[332476903,1721226642961,-500.0,0.00021917,2]
[332476904,1721226642970,-578.85909441,0.00021917,2]
[332476905,1721226642979,-500.0,0.00021917,2]
[332476906,1721226642990,-500.0,0.00021917,2]
[332476908,1721226642999,-500.0,0.00021917,2]
[332476910,1721226643011,-500.0,0.00021917,2]
[332476911,1721226643020,-500.0,0.00021917,2]
[332476913,1721226643030,-500.0,0.00021917,2]
[332476915,1721226643039,-590.5,0.00021917,2]
[332476917,1721226643048,-500.0,0.00021917,2]
[332476919,1721226643058,-500.04157604,0.00021917,2]
[332476920,1721226643067,-500.0,0.00021917,2]
[332476921,1721226643076,-500.0,0.00021917,2]
[332476922,1721226643085,-500.0,0.00021917,2]
[332476923,1721226643094,-500.0,0.00021917,2]
[332476924,1721226643104,-500.0,0.00021917,2]
[332476925,1721226643113,-500.0,0.00021917,2]
[332476926,1721226643125,-500.0,0.00021917,2]
[332476927,1721226643134,-500.0,0.00021917,2]
[332476928,1721226643145,-500.0,0.00021917,2]
[332476929,1721226643154,-500.0,0.00021917,2]
[332476930,1721226643165,-500.0,0.00021917,2]
[332476931,1721226643175,-500.0,0.00021917,2]
[332476932,1721226643184,-500.0,0.00021917,2]
[332476933,1721226643194,-500.0,0.00021917,2]
[332476934,1721226643205,-500.0,0.00021917,2]
[332476935,1721226643215,-500.0,0.00021917,2]
[332476936,1721226643225,-500.0,0.00021917,2]
[332476937,1721226643235,-526.23571842,0.00021917,2]
[332476938,1721226643245,-520.91606924,0.00021917,2]
[332476939,1721226643254,-512.12401173,0.00021917,2]
[332476940,1721226643264,-500.0,0.00021917,2]
[332476941,1721226643273,-500.0,0.00021917,2]
[332476943,1721226643283,-500.0,0.00021917,2]
[332476945,1721226643292,-500.0,0.00021917,2]
[332476947,1721226643302,-500.0,0.00021917,2]
[332476949,1721226643311,-500.0,0.00021917,2]
[332476951,1721226643321,-500.0,0.00021917,2]
[332476953,1721226643332,-500.0,0.00021917,2]
[332476955,1721226643341,-500.0,0.00021917,2]
[332476956,1721226643351,-500.0,0.00021917,2]
[332476957,1721226643360,-500.0,0.00021917,2]
[332476958,1721226643370,-567.1712879,0.00021917,2]
[332476959,1721226643379,-504.22135143,0.00021917,2]
[332476960,1721226643391,-500.0,0.00021917,2]
[332476961,1721226643400,-500.0,0.00021917,2]
[332476962,1721226643409,-500.0,0.00021917,2]
[332476963,1721226643419,-500.0,0.00021917,2]
[332476964,1721226643428,-500.0,0.00021917,2]
[332476965,1721226643438,-500.0,0.00021917,2]
[332476966,1721226643448,-500.0,0.00021917,2]
[332476967,1721226643457,-500.0,0.00021917,2]
[332476968,1721226643467,-500.0,0.00021917,2]
[332476969,1721226643476,-500.0,0.00021917,2]
[332476970,1721226643486,-500.0,0.00021917,2]
[332476971,1721226643496,-500.0,0.00021917,2]
[332476972,1721226643506,-500.0,0.00021917,2]
[332476973,1721226643515,-500.0,0.00021917,2]
[332476974,1721226643525,-500.0,0.00021917,2]
[332476975,1721226643534,-508.48204414,0.00021917,2]
[332476976,1721226643544,-500.0,0.00021917,2]
[332476977,1721226643553,-500.0,0.00021917,2]
[332476978,1721226643563,-500.0,0.00021917,2]
[332476979,1721226643572,-500.0,0.00021917,2]
[332476980,1721226643582,-500.0,0.00021917,2]
[332476981,1721226643592,-500.0,0.00021917,2]
[332476982,1721226643602,-500.0,0.00021917,2]
[332476983,1721226643611,-500.0,0.00021917,2]
[332476984,1721226643621,-305.095,0.00021917,2]
[332476985,1721226643630,-500.0,0.00021917,2]
[332476986,1721226643641,-500.0,0.00021917,2]
[332476987,1721226643650,-500.0,0.00021917,2]
[332476988,1721226643660,-500.0,0.00021917,2]
[332476989,1721226643669,-500.0,0.00021917,2]
[332476990,1721226643679,-500.0,0.00021917,2]
[332476991,1721226643689,-500.0,0.00021917,2]
[332476992,1721226643698,-500.0,0.00021917,2]
[332476993,1721226643707,-500.0,0.00021917,2]
[332476994,1721226643717,-500.0,0.00021917,2]
[332476995,1721226643726,-500.0,0.00021917,2]
[332476997,1721226643735,-500.75668372,0.00021917,2]
[332476999,1721226643745,-500.0,0.00021917,2]
[332477001,1721226643755,-500.0,0.00021917,2]
[332477002,1721226643764,-500.0,0.00021917,2]
[332477003,1721226643774,-500.0,0.00021917,2]
[332477004,1721226643784,-500.0,0.00021917,2]
[332477005,1721226643793,-500.0,0.00021917,2]
[332477006,1721226643803,-500.0,0.00021917,2]
[332477007,1721226643813,-273.27086151,0.00021917,2]
[332477008,1721226643822,-500.0,0.00021917,2]
[332477009,1721226643832,-500.0,0.00021917,2]
[332477010,1721226643841,-500.0,0.00021917,2]
[332477011,1721226643851,-500.0,0.00021917,2]
[332477012,1721226643860,-500.0,0.00021917,2]
[332477013,1721226643869,-500.0,0.00021917,2]
[332477014,1721226643878,-500.0,0.00021917,2]
[332477015,1721226643890,-500.0,0.00021917,2]
[332477016,1721226643899,-500.0,0.00021917,2]
[332477017,1721226643909,-500.0,0.00021917,2]
[332477018,1721226643918,-500.64607085,0.00021917,2]
[332477019,1721226643927,-500.0,0.00021917,2]
[332477020,1721226643938,-500.0,0.00021917,2]
[332477021,1721226643947,-500.0,0.00021917,2]
[332477022,1721226643957,-500.0,0.00021917,2]
[332477023,1721226643966,-500.0,0.00021917,2]
[332477024,1721226643975,-500.0,0.00021917,2]
[332477025,1721226643985,-500.0,0.00021917,2]
[332477026,1721226643996,-500.0,0.00021917,2]
[332477027,1721226644007,-500.0,0.00021917,2]
[332477028,1721226644017,-500.0,0.00021917,2]
[332477029,1721226644028,-500.0,0.00021917,2]
[332477030,1721226644038,-500.0,0.00021917,2]
[332477031,1721226644047,-520.38679063,0.00021917,2]
[332477032,1721226644058,-500.0,0.00021917,2]
[332477033,1721226644069,-500.0,0.00021917,2]
[332477034,1721226644081,-500.0,0.00021917,2]
[332477035,1721226644092,-500.0,0.00021917,2]
[332477036,1721226644104,-500.0,0.00021917,2]
[332477037,1721226644114,-500.0,0.00021917,2]
[332477038,1721226644126,-500.0,0.00021917,2]
[332477039,1721226644134,-500.0,0.00021917,2]
[332477040,1721226644145,-500.0,0.00021917,2]
[332477041,1721226644156,-500.0,0.00021917,2]
[332477042,1721226644165,-500.0,0.00021917,2]
[332477043,1721226644176,-500.0,0.00021917,2]
[332477044,1721226644185,-500.0,0.00021917,2]
[332477045,1721226644194,-500.0,0.00021917,2]
[332477046,1721226644204,-500.0,0.00021917,2]
[332477047,1721226644214,-647.6477685,0.00021917,2]
[332477048,1721226644224,-500.0,0.00021917,2]
[332477049,1721226644234,-215.2668305,0.00021917,2]
[332477050,1721226644244,-500.0,0.00021917,2]
[332477051,1721226644253,-500.0,0.00021917,2]
[332477052,1721226644263,-500.0,0.00021917,2]